[Event "Titled Tuesday Blitz August 1 Late 2023"]
[White "Semenova, Alina"]
[Black "Rodriguez Santiago, Jaime"]
[WhiteFideId "24113875"]
[BlackFideId "3100898"]
[WhiteElo "2082"]
[BlackElo "2340"]
[Result "0-1"]
[Round "7"]
[TimeControl "180+1"]
[Date "2023.08.01"]
[WhiteClock "0:00:10"]
[BlackClock "0:00:14"]
[Board "137"]

1. e4 {[%clk 0:03:00]}  c6 {[%clk 0:02:59]} 2. d4 {[%clk 0:02:59]}  d5 {[%clk 0:02:59]} 3. exd5 {[%clk 0:02:59]}  cxd5 {[%clk 0:02:58]} 4. Bd3 {[%clk 0:02:59]}  Nc6 {[%clk 0:02:57]} 5. c3 {[%clk 0:02:59]}  Qc7 {[%clk 0:02:57]} 6. Be3 {[%clk 0:02:59]}  Nf6 {[%clk 0:02:55]} 7. Nf3 {[%clk 0:02:59]}  Bg4 {[%clk 0:02:53]} 8. h3 {[%clk 0:02:57]}  Bh5 {[%clk 0:02:53]} 9. Nbd2 {[%clk 0:02:57]}  e6 {[%clk 0:02:52]} 10. Qc2 {[%clk 0:02:46]}  Rc8 {[%clk 0:02:44]} 11. Rc1 {[%clk 0:02:37]}  Bd6 {[%clk 0:02:35]} 12. g4 {[%clk 0:02:27]}  Bg6 {[%clk 0:02:30]} 13. Bxg6 {[%clk 0:02:27]}  hxg6 {[%clk 0:02:30]} 14. g5 {[%clk 0:02:22]}  Nh5 {[%clk 0:02:22]} 15. Ke2 {[%clk 0:02:06]}  Bf4 {[%clk 0:02:06]} 16. Qd3 {[%clk 0:00:48]}  Bxe3 {[%clk 0:02:01]} 17. Kxe3 {[%clk 0:00:49]}  Ne7 {[%clk 0:01:51]} 18. Qb5+ {[%clk 0:00:44]}  Kf8 {[%clk 0:01:48]} 19. Ne5 {[%clk 0:00:40]}  Nf5+ {[%clk 0:01:39]} 20. Kf3 {[%clk 0:00:28]}  a6 {[%clk 0:01:12]} 21. Qd7 {[%clk 0:00:17]}  Qxd7 {[%clk 0:01:04]} 22. Nxd7+ {[%clk 0:00:18]}  Ke7 {[%clk 0:01:03]} 23. Ne5 {[%clk 0:00:16]}  Nd6 {[%clk 0:00:53]} 24. Kg4 {[%clk 0:00:05]}  b5 {[%clk 0:00:45]} 25. Kf3 {[%clk 0:00:03]}  a5 {[%clk 0:00:43]} 26. Kg4 {[%clk 0:00:03]}  Rc7 {[%clk 0:00:30]} 27. h4 {[%clk 0:00:03]}  Rb8 {[%clk 0:00:30]} 28. Nb3 {[%clk 0:00:03]}  a4 {[%clk 0:00:27]} 29. Nc5 {[%clk 0:00:03]}  Rb6 {[%clk 0:00:24]} 30. Kf3 {[%clk 0:00:02]}  b4 {[%clk 0:00:22]} 31. cxb4 {[%clk 0:00:02]}  Rxb4 {[%clk 0:00:22]} 32. Ncd3 {[%clk 0:00:02]}  Rxc1 {[%clk 0:00:20]} 33. Rxc1 {[%clk 0:00:02]}  Rxd4 {[%clk 0:00:20]} 34. Nc6+ {[%clk 0:00:03]}  Kd7 {[%clk 0:00:19]} 35. Nxd4 {[%clk 0:00:04]}  Nc4 {[%clk 0:00:17]} 36. Nc5+ {[%clk 0:00:04]}  Ke7 {[%clk 0:00:16]} 37. Nd3 {[%clk 0:00:04]}  Nd2+ {[%clk 0:00:12]} 38. Ke2 {[%clk 0:00:04]}  Ne4 {[%clk 0:00:13]} 39. Nc6+ {[%clk 0:00:03]}  Kd6 {[%clk 0:00:13]} 40. Nd4 {[%clk 0:00:03]}  e5 {[%clk 0:00:13]} 41. Nb5+ {[%clk 0:00:03]}  Ke6 {[%clk 0:00:14]} 42. Nc5+ {[%clk 0:00:03]}  Kf5 {[%clk 0:00:14]} 43. Nxe4 {[%clk 0:00:03]}  Nf4+ {[%clk 0:00:15]} 44. Kf3 {[%clk 0:00:02]}  dxe4+ {[%clk 0:00:15]} 45. Kg3 {[%clk 0:00:03]}  Ne2+ {[%clk 0:00:15]} 46. Kh3 {[%clk 0:00:03]}  Nxc1 {[%clk 0:00:16]} 47. Nc3 {[%clk 0:00:03]}  Nd3 {[%clk 0:00:13]} 48. Kg2 {[%clk 0:00:03]}  Nxb2 {[%clk 0:00:13]} 49. f3 {[%clk 0:00:02]}  exf3+ {[%clk 0:00:13]} 50. Kxf3 {[%clk 0:00:03]}  a3 {[%clk 0:00:14]} 51. Nb5 {[%clk 0:00:03]}  Nc4 {[%clk 0:00:14]} 52. Kg2 {[%clk 0:00:02]}  Kg4 {[%clk 0:00:13]} 53. h5 {[%clk 0:00:03]}  Kxh5 {[%clk 0:00:13]} 54. Nd6 {[%clk 0:00:03]}  Kxg5 {[%clk 0:00:12]} 55. Nxc4 {[%clk 0:00:03]}  Kf5 {[%clk 0:00:11]} 56. Nxa3 {[%clk 0:00:03]}  Ke4 {[%clk 0:00:11]} 57. Nc2 {[%clk 0:00:03]}  f5 {[%clk 0:00:11]} 58. a4 {[%clk 0:00:03]}  Kd5 {[%clk 0:00:12]} 59. a5 {[%clk 0:00:02]}  Kc5 {[%clk 0:00:12]} 60. a6 {[%clk 0:00:02]}  Kb6 {[%clk 0:00:13]} 61. Nb4 {[%clk 0:00:03]}  Ka7 {[%clk 0:00:13]} 62. Kf3 {[%clk 0:00:03]}  g5 {[%clk 0:00:13]} 63. Ke3 {[%clk 0:00:04]}  g6 {[%clk 0:00:13]} 64. Kf2 {[%clk 0:00:04]}  g4 {[%clk 0:00:13]} 65. Kg3 {[%clk 0:00:04]}  g5 {[%clk 0:00:13]} 66. Kf2 {[%clk 0:00:05]}  f4 {[%clk 0:00:14]} 67. Kf1 {[%clk 0:00:04]}  e4 {[%clk 0:00:14]} 68. Nc6+ {[%clk 0:00:03]}  Kxa6 {[%clk 0:00:14]} 69. Nd4 {[%clk 0:00:03]}  Kb6 {[%clk 0:00:13]} 70. Ne6 {[%clk 0:00:04]}  Kc6 {[%clk 0:00:12]} 71. Nxg5 {[%clk 0:00:04]}  Kd5 {[%clk 0:00:12]} 72. Nf7 {[%clk 0:00:03]}  Kd4 {[%clk 0:00:12]} 73. Nh6 {[%clk 0:00:02]}  g3 {[%clk 0:00:12]} 74. Nf5+ {[%clk 0:00:02]}  Kd3 {[%clk 0:00:11]} 75. Kg2 {[%clk 0:00:02]}  Ke2 {[%clk 0:00:11]} 76. Nd4+ {[%clk 0:00:01]}  Ke3 {[%clk 0:00:11]} 77. Nf5+ {[%clk 0:00:01]}  Kd2 {[%clk 0:00:09]} 78. Nd6 {[%clk 0:00:02]}  e3 {[%clk 0:00:05]} 79. Kf3 {[%clk 0:00:02]}  e2 {[%clk 0:00:05]} 80. Ne4+ {[%clk 0:00:03]}  Kd3 {[%clk 0:00:03]} 81. Nc3 {[%clk 0:00:01]}  e1=Q {[%clk 0:00:03]} 82. Ne4 {[%clk 0:00:01]}  Qe2+ {[%clk 0:00:03]} 83. Kxf4 {[%clk 0:00:01]}  Qxe4+ {[%clk 0:00:04]} 84. Kxg3 {[%clk 0:00:01]}  Qe3+ {[%clk 0:00:04]} 85. Kg4 {[%clk 0:00:01]}  Qe2+ {[%clk 0:00:04]} 86. Kf5 {[%clk 0:00:02]}  Kd2 {[%clk 0:00:05]} 87. Kf4 {[%clk 0:00:03]}  Ke1 {[%clk 0:00:06]} 88. Kg3 {[%clk 0:00:04]}  Kf1 {[%clk 0:00:07]} 89. Kf4 {[%clk 0:00:04]}  Qf2+ {[%clk 0:00:08]} 90. Ke4 {[%clk 0:00:04]}  Ke2 {[%clk 0:00:09]} 91. Kd5 {[%clk 0:00:05]}  Kd3 {[%clk 0:00:10]} 92. Ke5 {[%clk 0:00:06]}  Qe2+ {[%clk 0:00:11]} 93. Kf4 {[%clk 0:00:06]}  Qe3+ {[%clk 0:00:12]} 94. Kf5 {[%clk 0:00:06]}  Qe4+ {[%clk 0:00:13]} 95. Kf6 {[%clk 0:00:06]}  Kd4 {[%clk 0:00:13]} 96. Kg5 {[%clk 0:00:07]}  Qd5+ {[%clk 0:00:14]} 97. Kf6 {[%clk 0:00:08]}  Ke4 {[%clk 0:00:14]} 98. Ke7 {[%clk 0:00:09]}  Ke5 {[%clk 0:00:14]} 99. Kf8 {[%clk 0:00:08]}  Qb7 {[%clk 0:00:14]} 100. Ke8 {[%clk 0:00:09]}  Ke6 {[%clk 0:00:13]} 101. Kd8 {[%clk 0:00:10]}  Qd7# {[%clk 0:00:14]} 0-1


[Site "https://www.chess.com"]

[Event "Titled Tuesday Blitz August 1 Late 2023"]
[White "Ahn, Hongjin"]
[Black "Vargas, Mauricio"]
[WhiteFideId "13201492"]
[BlackFideId "4404572"]
[WhiteElo "2310"]
[BlackElo "1889"]
[Result "1-0"]
[Round "7"]
[TimeControl "180+1"]
[Date "2023.08.01"]
[WhiteClock "0:00:52"]
[BlackClock "0:00:00"]
[Board "139"]

1. e4 {[%clk 0:03:00]}  d5 {[%clk 0:02:59]} 2. exd5 {[%clk 0:03:00]}  Qxd5 {[%clk 0:03:00]} 3. Nc3 {[%clk 0:03:00]}  Qa5 {[%clk 0:03:00]} 4. d4 {[%clk 0:03:00]}  c6 {[%clk 0:03:00]} 5. Nf3 {[%clk 0:03:00]}  Nf6 {[%clk 0:03:00]} 6. Ne5 {[%clk 0:03:00]}  Bf5 {[%clk 0:02:57]} 7. Nc4 {[%clk 0:03:01]}  Qc7 {[%clk 0:02:56]} 8. Bd3 {[%clk 0:03:00]}  Bxd3 {[%clk 0:02:55]} 9. Qxd3 {[%clk 0:03:01]}  e6 {[%clk 0:02:55]} 10. Qf3 {[%clk 0:03:01]}  Be7 {[%clk 0:02:50]} 11. Bf4 {[%clk 0:03:00]}  Qd8 {[%clk 0:02:41]} 12. O-O-O {[%clk 0:03:00]}  O-O {[%clk 0:02:40]} 13. Ne4 {[%clk 0:02:57]}  Nxe4 {[%clk 0:02:37]} 14. Qxe4 {[%clk 0:02:57]}  Nd7 {[%clk 0:02:37]} 15. h4 {[%clk 0:02:54]}  Nf6 {[%clk 0:02:37]} 16. Qe2 {[%clk 0:02:52]}  Rc8 {[%clk 0:02:20]} 17. g4 {[%clk 0:02:49]}  Nd5 {[%clk 0:02:16]} 18. Bd2 {[%clk 0:02:46]}  b5 {[%clk 0:02:11]} 19. Ne5 {[%clk 0:02:45]}  a6 {[%clk 0:01:48]} 20. g5 {[%clk 0:02:41]}  c5 {[%clk 0:01:47]} 21. f4 {[%clk 0:02:41]}  cxd4 {[%clk 0:01:44]} 22. h5 {[%clk 0:02:41]}  Qc7 {[%clk 0:01:16]} 23. Kb1 {[%clk 0:02:30]}  Qxc2+ {[%clk 0:01:03]} 24. Ka1 {[%clk 0:02:28]}  Qa4 {[%clk 0:00:55]} 25. g6 {[%clk 0:02:27]}  Rc2 {[%clk 0:00:41]} 26. gxh7+ {[%clk 0:02:19]}  Kh8 {[%clk 0:00:40]} 27. h6 {[%clk 0:02:09]}  g6 {[%clk 0:00:23]} 28. Rdg1 {[%clk 0:01:37]}  Kxh7 {[%clk 0:00:20]} 29. Nxf7 {[%clk 0:01:32]}  Rxf7 {[%clk 0:00:17]} 30. Qxe6 {[%clk 0:01:30]}  Rf6 {[%clk 0:00:05]} 31. Qxd5 {[%clk 0:01:10]}  Rxd2 {[%clk 0:00:05]} 32. f5 {[%clk 0:00:56]}  Qb4 {[%clk 0:00:04]} 33. fxg6+ {[%clk 0:00:53]}  Kh8 {[%clk 0:00:00]} 34. g7+ {[%clk 0:00:52]} 1-0


[Site "https://www.chess.com"]

[Event "Titled Tuesday Blitz August 1 Late 2023"]
[White "Akhayan, Ruben"]
[Black "Dominguez Rincon, Miller Duvan"]
[WhiteFideId "204439"]
[BlackFideId "4406583"]
[WhiteElo "2284"]
[BlackElo "1967"]
[Result "0-1"]
[Round "7"]
[TimeControl "180+1"]
[Date "2023.08.01"]
[WhiteClock "0:00:46"]
[BlackClock "0:00:14"]
[Board "140"]

1. e4 {[%clk 0:03:00]}  e5 {[%clk 0:02:59]} 2. Bc4 {[%clk 0:02:58]}  Nf6 {[%clk 0:02:51]} 3. d3 {[%clk 0:02:57]}  c6 {[%clk 0:02:49]} 4. Nf3 {[%clk 0:02:55]}  d6 {[%clk 0:02:48]} 5. O-O {[%clk 0:02:53]}  Be7 {[%clk 0:02:47]} 6. Nc3 {[%clk 0:02:52]}  O-O {[%clk 0:02:46]} 7. h3 {[%clk 0:02:50]}  b5 {[%clk 0:02:44]} 8. Bb3 {[%clk 0:02:50]}  a5 {[%clk 0:02:42]} 9. a4 {[%clk 0:02:49]}  b4 {[%clk 0:02:39]} 10. Ne2 {[%clk 0:02:49]}  Be6 {[%clk 0:02:39]} 11. Ng3 {[%clk 0:02:48]}  Bxb3 {[%clk 0:02:31]} 12. cxb3 {[%clk 0:02:47]}  g6 {[%clk 0:02:25]} 13. Kh2 {[%clk 0:02:42]}  Nbd7 {[%clk 0:02:21]} 14. Be3 {[%clk 0:02:40]}  c5 {[%clk 0:02:16]} 15. Nd2 {[%clk 0:02:38]}  Nb8 {[%clk 0:02:10]} 16. Nc4 {[%clk 0:02:37]}  Nc6 {[%clk 0:02:08]} 17. f4 {[%clk 0:02:35]}  Nd7 {[%clk 0:02:00]} 18. f5 {[%clk 0:02:34]}  Bg5 {[%clk 0:01:57]} 19. Qg4 {[%clk 0:02:30]}  Bxe3 {[%clk 0:01:53]} 20. Nxe3 {[%clk 0:02:30]}  Nd4 {[%clk 0:01:51]} 21. Nd5 {[%clk 0:02:27]}  Nf6 {[%clk 0:01:46]} 22. Nxf6+ {[%clk 0:02:20]}  Qxf6 {[%clk 0:01:47]} 23. Nh5 {[%clk 0:02:18]}  Qd8 {[%clk 0:01:31]} 24. f6 {[%clk 0:02:16]}  Kh8 {[%clk 0:01:22]} 25. Ng3 {[%clk 0:02:10]}  Nxb3 {[%clk 0:00:56]} 26. Rad1 {[%clk 0:02:05]}  Nd4 {[%clk 0:00:54]} 27. Rf2 {[%clk 0:02:01]}  h6 {[%clk 0:00:45]} 28. Rdf1 {[%clk 0:02:00]}  Qc8 {[%clk 0:00:41]} 29. Qh4 {[%clk 0:01:59]}  Kh7 {[%clk 0:00:41]} 30. Nf5 {[%clk 0:01:45]}  Nxf5 {[%clk 0:00:38]} 31. exf5 {[%clk 0:01:44]}  g5 {[%clk 0:00:29]} 32. Qh5 {[%clk 0:01:43]}  Qd8 {[%clk 0:00:27]} 33. h4 {[%clk 0:01:27]}  Qxf6 {[%clk 0:00:27]} 34. Rf3 {[%clk 0:01:26]}  Rg8 {[%clk 0:00:26]} 35. Rh3 {[%clk 0:01:25]}  gxh4 {[%clk 0:00:23]} 36. Rxh4 {[%clk 0:01:23]}  Rg5 {[%clk 0:00:24]} 37. Qf3 {[%clk 0:01:19]}  Rag8 {[%clk 0:00:23]} 38. Rh3 {[%clk 0:01:12]}  Qg7 {[%clk 0:00:21]} 39. Rf2 {[%clk 0:01:10]}  f6 {[%clk 0:00:21]} 40. b3 {[%clk 0:01:09]}  Rg4 {[%clk 0:00:21]} 41. Kh1 {[%clk 0:01:07]}  Qg5 {[%clk 0:00:21]} 42. Rh2 {[%clk 0:01:00]}  Rg7 {[%clk 0:00:21]} 43. Kg1 {[%clk 0:00:59]}  Qc1+ {[%clk 0:00:18]} 44. Rf1 {[%clk 0:00:59]}  Qd2 {[%clk 0:00:16]} 45. Kh1 {[%clk 0:00:58]}  Qg5 {[%clk 0:00:16]} 46. Rf2 {[%clk 0:00:56]}  Rf4 {[%clk 0:00:16]} 47. Qe2 {[%clk 0:00:54]}  Rxf2 {[%clk 0:00:16]} 48. Qxf2 {[%clk 0:00:55]}  Qc1+ {[%clk 0:00:15]} 49. Qg1 {[%clk 0:00:55]}  Qxg1+ {[%clk 0:00:16]} 50. Kxg1 {[%clk 0:00:56]}  Rg3 {[%clk 0:00:16]} 51. Rh3 {[%clk 0:00:50]}  Rxh3 {[%clk 0:00:16]} 52. gxh3 {[%clk 0:00:51]}  h5 {[%clk 0:00:16]} 53. Kf2 {[%clk 0:00:51]}  d5 {[%clk 0:00:13]} 54. Kg3 {[%clk 0:00:52]}  Kh6 {[%clk 0:00:13]} 55. Kh4 {[%clk 0:00:52]}  c4 {[%clk 0:00:13]} 56. dxc4 {[%clk 0:00:49]}  dxc4 {[%clk 0:00:14]} 57. bxc4 {[%clk 0:00:46]}  b3 {[%clk 0:00:14]} 0-1


[Site "https://www.chess.com"]

[Event "Titled Tuesday Blitz August 1 Late 2023"]
[White "Firouzja, Alireza"]
[Black "Carlsen, Magnus"]
[WhiteFideId "12573981"]
[BlackFideId "1503014"]
[WhiteElo "3100"]
[BlackElo "3255"]
[Result "1/2-1/2"]
[Round "8"]
[TimeControl "180+1"]
[Date "2023.08.01"]
[WhiteClock "0:01:37"]
[BlackClock "0:02:18"]
[Board "1"]

1. d4 {[%clk 0:02:59]}  d5 {[%clk 0:02:58]} 2. c4 {[%clk 0:02:59]}  e6 {[%clk 0:02:59]} 3. Nc3 {[%clk 0:02:59]}  Bb4 {[%clk 0:02:59]} 4. e3 {[%clk 0:02:53]}  Nf6 {[%clk 0:02:57]} 5. a3 {[%clk 0:02:54]}  Be7 {[%clk 0:02:57]} 6. cxd5 {[%clk 0:02:50]}  exd5 {[%clk 0:02:57]} 7. Bd3 {[%clk 0:02:50]}  O-O {[%clk 0:02:57]} 8. Nge2 {[%clk 0:02:51]}  c5 {[%clk 0:02:57]} 9. dxc5 {[%clk 0:02:49]}  Bxc5 {[%clk 0:02:57]} 10. b4 {[%clk 0:02:48]}  Bd6 {[%clk 0:02:52]} 11. Bb2 {[%clk 0:02:46]}  Nc6 {[%clk 0:02:52]} 12. Nb5 {[%clk 0:02:42]}  Be5 {[%clk 0:02:52]} 13. Nbd4 {[%clk 0:02:26]}  Nxd4 {[%clk 0:02:51]} 14. Bxd4 {[%clk 0:02:26]}  Qe7 {[%clk 0:02:50]} 15. O-O {[%clk 0:02:19]}  Bg4 {[%clk 0:02:48]} 16. h3 {[%clk 0:02:04]}  Bxd4 {[%clk 0:02:45]} 17. exd4 {[%clk 0:02:04]}  Bxe2 {[%clk 0:02:44]} 18. Qxe2 {[%clk 0:01:55]}  Qxe2 {[%clk 0:02:43]} 19. Bxe2 {[%clk 0:01:55]}  Rfc8 {[%clk 0:02:43]} 20. Rfc1 {[%clk 0:01:52]}  Kf8 {[%clk 0:02:43]} 21. Rc5 {[%clk 0:01:43]}  b6 {[%clk 0:02:41]} 22. Rcc1 {[%clk 0:01:41]}  a5 {[%clk 0:02:41]} 23. bxa5 {[%clk 0:01:37]}  Rxc1+ {[%clk 0:02:37]} 24. Rxc1 {[%clk 0:01:37]}  Rxa5 {[%clk 0:02:38]} 25. Rc8+ {[%clk 0:01:37]}  Ke7 {[%clk 0:02:37]} 26. Rc7+ {[%clk 0:01:38]}  Ke6 {[%clk 0:02:37]} 27. Rc6+ {[%clk 0:01:35]}  Kd7 {[%clk 0:02:33]} 28. Rxb6 {[%clk 0:01:35]}  Rxa3 {[%clk 0:02:33]} 29. Rb7+ {[%clk 0:01:35]}  Ke6 {[%clk 0:02:33]} 30. Rb6+ {[%clk 0:01:36]}  Ke7 {[%clk 0:02:20]} 31. Rb7+ {[%clk 0:01:36]}  Ke6 {[%clk 0:02:18]} 32. Rb6+ {[%clk 0:01:37]}  Ke7 {[%clk 0:02:18]} 33. Rb7+ {[%clk 0:01:37]}  Ke6 {[%clk 0:02:18]} 1/2-1/2


[Site "https://www.chess.com"]

[Event "Titled Tuesday Blitz August 1 Late 2023"]
[White "Andreikin, Dmitry"]
[Black "Sjugirov, Sanan"]
[WhiteFideId "4158814"]
[BlackFideId "4189302"]
[WhiteElo "3055"]
[BlackElo "2955"]
[Result "1-0"]
[Round "8"]
[TimeControl "180+1"]
[Date "2023.08.01"]
[WhiteClock "0:00:19"]
[BlackClock "0:00:00"]
[Board "3"]

1. d4 {[%clk 0:03:00]}  Nf6 {[%clk 0:02:59]} 2. c4 {[%clk 0:03:01]}  e6 {[%clk 0:03:00]} 3. Nf3 {[%clk 0:03:02]}  d5 {[%clk 0:03:00]} 4. Bg5 {[%clk 0:03:02]}  Nbd7 {[%clk 0:02:58]} 5. e3 {[%clk 0:03:02]}  h6 {[%clk 0:02:58]} 6. Bh4 {[%clk 0:03:02]}  Be7 {[%clk 0:02:58]} 7. Nbd2 {[%clk 0:03:01]}  O-O {[%clk 0:02:57]} 8. Be2 {[%clk 0:03:01]}  c5 {[%clk 0:02:56]} 9. dxc5 {[%clk 0:03:00]}  Nxc5 {[%clk 0:02:55]} 10. O-O {[%clk 0:03:00]}  b6 {[%clk 0:02:54]} 11. Nd4 {[%clk 0:02:49]}  Bb7 {[%clk 0:02:54]} 12. Bf3 {[%clk 0:02:50]}  Nfe4 {[%clk 0:02:41]} 13. Bxe7 {[%clk 0:02:46]}  Qxe7 {[%clk 0:02:42]} 14. cxd5 {[%clk 0:02:46]}  Bxd5 {[%clk 0:02:18]} 15. Nxe4 {[%clk 0:02:46]}  Nxe4 {[%clk 0:02:09]} 16. Rc1 {[%clk 0:02:38]}  Rac8 {[%clk 0:02:06]} 17. Qe2 {[%clk 0:02:28]}  Qb7 {[%clk 0:01:42]} 18. h3 {[%clk 0:02:18]}  Nf6 {[%clk 0:01:31]} 19. Bxd5 {[%clk 0:02:13]}  Qxd5 {[%clk 0:01:28]} 20. Qa6 {[%clk 0:02:12]}  Qd7 {[%clk 0:01:00]} 21. a4 {[%clk 0:02:12]}  Ne4 {[%clk 0:00:36]} 22. Nb5 {[%clk 0:02:11]}  Nc5 {[%clk 0:00:33]} 23. Qxa7 {[%clk 0:02:10]}  Qxa7 {[%clk 0:00:33]} 24. Nxa7 {[%clk 0:02:11]}  Ra8 {[%clk 0:00:34]} 25. Nc6 {[%clk 0:02:00]}  Rxa4 {[%clk 0:00:33]} 26. Rfd1 {[%clk 0:01:58]}  Rfa8 {[%clk 0:00:26]} 27. b4 {[%clk 0:01:52]}  Nb3 {[%clk 0:00:17]} 28. Rb1 {[%clk 0:01:32]}  Ra1 {[%clk 0:00:17]} 29. Ne5 {[%clk 0:01:23]}  Rxb1 {[%clk 0:00:14]} 30. Rxb1 {[%clk 0:01:23]}  Nd2 {[%clk 0:00:14]} 31. Rc1 {[%clk 0:01:17]}  Ne4 {[%clk 0:00:13]} 32. f3 {[%clk 0:01:13]}  Ng3 {[%clk 0:00:12]} 33. Kh2 {[%clk 0:01:07]}  Nf5 {[%clk 0:00:11]} 34. e4 {[%clk 0:01:08]}  Ne3 {[%clk 0:00:11]} 35. Rc3 {[%clk 0:01:03]}  Nf1+ {[%clk 0:00:05]} 36. Kg1 {[%clk 0:01:03]}  Ng3 {[%clk 0:00:05]} 37. Kf2 {[%clk 0:01:00]}  Nh1+ {[%clk 0:00:05]} 38. Kg1 {[%clk 0:00:58]}  Ng3 {[%clk 0:00:04]} 39. Kf2 {[%clk 0:00:58]}  Nh1+ {[%clk 0:00:04]} 40. Ke3 {[%clk 0:00:59]}  Ra2 {[%clk 0:00:03]} 41. Rc8+ {[%clk 0:00:58]}  Kh7 {[%clk 0:00:03]} 42. Nxf7 {[%clk 0:00:57]}  Rxg2 {[%clk 0:00:03]} 43. Rc6 {[%clk 0:00:53]}  Rb2 {[%clk 0:00:02]} 44. Rxb6 {[%clk 0:00:52]}  Nf2 {[%clk 0:00:02]} 45. h4 {[%clk 0:00:50]}  Nd1+ {[%clk 0:00:01]} 46. Kd4 {[%clk 0:00:50]}  Rb3 {[%clk 0:00:01]} 47. Ne5 {[%clk 0:00:49]}  Ne3 {[%clk 0:00:02]} 48. Rxe6 {[%clk 0:00:41]}  Ng2 {[%clk 0:00:02]} 49. Kc4 {[%clk 0:00:39]}  Rb1 {[%clk 0:00:03]} 50. Ng6 {[%clk 0:00:35]}  Ne3+ {[%clk 0:00:02]} 51. Kd3 {[%clk 0:00:33]}  Ng2 {[%clk 0:00:02]} 52. h5 {[%clk 0:00:33]}  Rh1 {[%clk 0:00:01]} 53. Re5 {[%clk 0:00:31]}  Rh3 {[%clk 0:00:01]} 54. Ke2 {[%clk 0:00:29]}  Rh2 {[%clk 0:00:02]} 55. Kf2 {[%clk 0:00:19]}  Nh4+ {[%clk 0:00:00]} 56. Kg3 {[%clk 0:00:19]} 1-0


[Site "https://www.chess.com"]

[Event "Titled Tuesday Blitz August 1 Late 2023"]
[White "Grischuk, Alexander"]
[Black "Demidov, Mikhail"]
[WhiteFideId "4126025"]
[BlackFideId "4197143"]
[WhiteElo "3005"]
[BlackElo "2940"]
[Result "1/2-1/2"]
[Round "8"]
[TimeControl "180+1"]
[Date "2023.08.01"]
[WhiteClock "0:00:05"]
[BlackClock "0:00:21"]
[Board "4"]

1. Nf3 {[%clk 0:03:00]}  g6 {[%clk 0:02:56]} 2. e4 {[%clk 0:03:01]}  Bg7 {[%clk 0:02:56]} 3. d4 {[%clk 0:03:01]}  d6 {[%clk 0:02:56]} 4. Bd3 {[%clk 0:03:01]}  e6 {[%clk 0:02:56]} 5. O-O {[%clk 0:03:01]}  b6 {[%clk 0:02:55]} 6. Re1 {[%clk 0:03:01]}  Bb7 {[%clk 0:02:55]} 7. Nbd2 {[%clk 0:03:01]}  Nd7 {[%clk 0:02:54]} 8. Nf1 {[%clk 0:03:01]}  a6 {[%clk 0:02:54]} 9. c3 {[%clk 0:02:59]}  Ne7 {[%clk 0:02:49]} 10. Ng3 {[%clk 0:02:59]}  b5 {[%clk 0:02:47]} 11. a4 {[%clk 0:02:58]}  c6 {[%clk 0:02:46]} 12. Bf4 {[%clk 0:02:53]}  e5 {[%clk 0:02:44]} 13. Be3 {[%clk 0:02:52]}  O-O {[%clk 0:02:38]} 14. Qd2 {[%clk 0:02:51]}  Qc7 {[%clk 0:02:30]} 15. Bh6 {[%clk 0:02:50]}  f6 {[%clk 0:02:20]} 16. b4 {[%clk 0:02:46]}  Kh8 {[%clk 0:02:01]} 17. h4 {[%clk 0:02:40]}  bxa4 {[%clk 0:01:53]} 18. Rxa4 {[%clk 0:02:29]}  a5 {[%clk 0:01:53]} 19. b5 {[%clk 0:01:58]}  cxb5 {[%clk 0:01:42]} 20. Bxb5 {[%clk 0:01:59]}  Nb6 {[%clk 0:01:43]} 21. Ra3 {[%clk 0:01:59]}  Bc6 {[%clk 0:01:41]} 22. Bd3 {[%clk 0:01:44]}  a4 {[%clk 0:01:40]} 23. Bxg7+ {[%clk 0:01:39]}  Kxg7 {[%clk 0:01:39]} 24. h5 {[%clk 0:01:40]}  Be8 {[%clk 0:01:33]} 25. Rb1 {[%clk 0:01:14]}  Nc6 {[%clk 0:01:29]} 26. Nh4 {[%clk 0:01:02]}  Na5 {[%clk 0:01:04]} 27. hxg6 {[%clk 0:01:02]}  hxg6 {[%clk 0:01:00]} 28. Ngf5+ {[%clk 0:00:56]}  gxf5 {[%clk 0:00:53]} 29. Nxf5+ {[%clk 0:00:57]}  Kg8 {[%clk 0:00:53]} 30. Qe2 {[%clk 0:00:19]}  Rf7 {[%clk 0:00:33]} 31. Qg4+ {[%clk 0:00:15]}  Kf8 {[%clk 0:00:33]} 32. Qh4 {[%clk 0:00:16]}  Kg8 {[%clk 0:00:27]} 33. Nh6+ {[%clk 0:00:16]}  Kg7 {[%clk 0:00:23]} 34. Nf5+ {[%clk 0:00:13]}  Kg8 {[%clk 0:00:22]} 35. c4 {[%clk 0:00:09]}  Nb3 {[%clk 0:00:20]} 36. Nh6+ {[%clk 0:00:05]}  Kg7 {[%clk 0:00:20]} 37. Nf5+ {[%clk 0:00:05]}  Kg8 {[%clk 0:00:20]} 38. Nh6+ {[%clk 0:00:06]}  Kg7 {[%clk 0:00:21]} 39. Nf5+ {[%clk 0:00:05]}  Kg8 {[%clk 0:00:21]} 1/2-1/2


[Site "https://www.chess.com"]

[Event "Titled Tuesday Blitz August 1 Late 2023"]
[White "Matlakov, Maxim"]
[Black "Pichot, Alan"]
[WhiteFideId "4168003"]
[BlackFideId "110973"]
[WhiteElo "2975"]
[BlackElo "2854"]
[Result "1-0"]
[Round "8"]
[TimeControl "180+1"]
[Date "2023.08.01"]
[WhiteClock "0:01:19"]
[BlackClock "0:01:18"]
[Board "6"]

1. e4 {[%clk 0:03:00]}  c5 {[%clk 0:02:56]} 2. Nf3 {[%clk 0:03:01]}  e6 {[%clk 0:02:56]} 3. b3 {[%clk 0:03:00]}  b6 {[%clk 0:02:55]} 4. Bb2 {[%clk 0:03:00]}  Bb7 {[%clk 0:02:56]} 5. Nc3 {[%clk 0:03:00]}  d6 {[%clk 0:02:54]} 6. d4 {[%clk 0:03:00]}  cxd4 {[%clk 0:02:53]} 7. Nxd4 {[%clk 0:02:59]}  a6 {[%clk 0:02:50]} 8. Qe2 {[%clk 0:02:58]}  Nf6 {[%clk 0:02:49]} 9. O-O-O {[%clk 0:02:57]}  Qc7 {[%clk 0:02:48]} 10. g4 {[%clk 0:02:56]}  h6 {[%clk 0:02:46]} 11. f4 {[%clk 0:02:54]}  Nbd7 {[%clk 0:02:46]} 12. Bg2 {[%clk 0:02:54]}  Rc8 {[%clk 0:02:33]} 13. h4 {[%clk 0:02:54]}  h5 {[%clk 0:02:32]} 14. g5 {[%clk 0:02:52]}  Ng4 {[%clk 0:02:32]} 15. g6 {[%clk 0:02:52]}  e5 {[%clk 0:02:29]} 16. gxf7+ {[%clk 0:02:52]}  Kxf7 {[%clk 0:02:29]} 17. Nf3 {[%clk 0:02:29]}  Be7 {[%clk 0:02:23]} 18. Ng5+ {[%clk 0:02:02]}  Bxg5 {[%clk 0:02:16]} 19. hxg5 {[%clk 0:02:03]}  exf4 {[%clk 0:02:16]} 20. Rdf1 {[%clk 0:01:58]}  Nde5 {[%clk 0:02:15]} 21. Rxf4+ {[%clk 0:01:58]}  Kg8 {[%clk 0:02:15]} 22. Nd5 {[%clk 0:01:51]}  Bxd5 {[%clk 0:02:12]} 23. exd5 {[%clk 0:01:52]}  Qe7 {[%clk 0:02:01]} 24. Kb1 {[%clk 0:01:40]}  Qxg5 {[%clk 0:01:57]} 25. Rhf1 {[%clk 0:01:40]}  b5 {[%clk 0:01:53]} 26. Be4 {[%clk 0:01:38]}  Nf6 {[%clk 0:01:40]} 27. Bf5 {[%clk 0:01:33]}  Re8 {[%clk 0:01:27]} 28. Be6+ {[%clk 0:01:31]}  Kh7 {[%clk 0:01:24]} 29. Rf5 {[%clk 0:01:31]}  Qg4 {[%clk 0:01:18]} 30. Rxe5 {[%clk 0:01:19]} 1-0


[Site "https://www.chess.com"]